[Event "*** SCC Grand Prix: Titled Tuesday Blitz"]
[Site "Chess.com"]
[Date "2020.08.11"]
[Round "4"]
[White "Na_binci"]
[Black "Mbneu"]
[Result "0-1"]
[WhiteElo "1934"]
[BlackElo "2220"]
[TimeControl "180+1"]
[EndTime "10:38:47 PDT"]
[Termination "Mbneu won by resignation"]

1. d4 {[%clk 0:03:00.9]} 1... Nf6 {[%clk 0:02:58.8]} 2. c4 {[%clk 0:03:00.5]}
2... c5 {[%clk 0:02:57.8]} 3. d5 {[%clk 0:02:59]} 3... e6 {[%clk 0:02:58]} 4.
Nc3 {[%clk 0:02:57.1]} 4... exd5 {[%clk 0:02:58.6]} 5. cxd5 {[%clk 0:02:58]}
5... d6 {[%clk 0:02:58.7]} 6. Nf3 {[%clk 0:02:57.6]} 6... g6 {[%clk 0:02:59.2]}
7. Bf4 {[%clk 0:02:57.8]} 7... Bg7 {[%clk 0:02:59.3]} 8. Qa4+ {[%clk 0:02:56.8]}
8... Bd7 {[%clk 0:02:58.8]} 9. Qb3 {[%clk 0:02:57.2]} 9... b5 {[%clk 0:02:58.6]}
10. Nxb5 {[%clk 0:02:54.2]} 10... Bxb5 {[%clk 0:02:57.7]} 11. Qxb5+ {[%clk
0:02:53.7]} 11... Nbd7 {[%clk 0:02:58.1]} 12. Bxd6 {[%clk 0:02:45]} 12... Ne4
{[%clk 0:02:56.6]} 13. Bf4 {[%clk 0:02:30.3]} 13... O-O {[%clk 0:02:39.6]} 14.
e3 {[%clk 0:02:27.3]} 14... g5 {[%clk 0:02:01]} 15. Bg3 {[%clk 0:02:23]} 15...
Nxg3 {[%clk 0:01:57.6]} 16. hxg3 {[%clk 0:02:21.8]} 16... Rb8 {[%clk 0:01:58.1]}
17. Qd3 {[%clk 0:02:01.9]} 17... h6 {[%clk 0:01:56.4]} 18. Rb1 {[%clk
0:01:52.4]} 18... Qa5+ {[%clk 0:01:49.4]} 19. Ke2 {[%clk 0:01:29.2]} 19... c4
{[%clk 0:01:15.1]} 20. Qf5 {[%clk 0:01:20.7]} 20... Nf6 {[%clk 0:01:03.6]} 21.
Nd2 {[%clk 0:00:33.4]} 21... Nxd5 {[%clk 0:00:53.6]} 22. Kf3 {[%clk 0:00:21.7]}
22... Qxd2 {[%clk 0:00:49]} 23. Bxc4 {[%clk 0:00:17.1]} 23... Nf6 {[%clk
0:00:37]} 24. Rxh6 {[%clk 0:00:16.4]} 24... g4+ {[%clk 0:00:27.6]} 0-1

[Event "*** SCC Grand Prix: Titled Tuesday Blitz"]
[Site "Chess.com"]
[Date "2020.08.11"]
[Round "4"]
[White "DenLaz"]
[Black "pastouche06"]
[Result "0-1"]
[WhiteElo "2674"]
[BlackElo "2509"]
[TimeControl "180+1"]
[EndTime "10:38:50 PDT"]
[Termination "pastouche06 won by resignation"]

1. e4 {[%clk 0:03:00.9]} 1... c6 {[%clk 0:03:00]} 2. d4 {[%clk 0:02:55.3]} 2...
d5 {[%clk 0:03:00]} 3. Nd2 {[%clk 0:02:55.2]} 3... dxe4 {[%clk 0:02:58.9]} 4.
Nxe4 {[%clk 0:02:54.9]} 4... Nf6 {[%clk 0:02:59.4]} 5. Nxf6+ {[%clk 0:02:51]}
5... exf6 {[%clk 0:03:00.3]} 6. c3 {[%clk 0:02:50.5]} 6... Bd6 {[%clk
0:03:00.6]} 7. Bd3 {[%clk 0:02:49.8]} 7... O-O {[%clk 0:03:01]} 8. Ne2 {[%clk
0:02:50.3]} 8... Re8 {[%clk 0:03:00.6]} 9. Qc2 {[%clk 0:02:48.8]} 9... h5 {[%clk
0:03:00.3]} 10. Bd2 {[%clk 0:02:45.3]} 10... Nd7 {[%clk 0:02:58.7]} 11. O-O-O
{[%clk 0:02:44.9]} 11... Nf8 {[%clk 0:02:57.4]} 12. Nf4 {[%clk 0:02:44.2]} 12...
Bxf4 {[%clk 0:02:56.7]} 13. Bxf4 {[%clk 0:02:45.1]} 13... Be6 {[%clk 0:02:56.7]}
14. b3 {[%clk 0:02:38.3]} 14... b5 {[%clk 0:02:55.4]} 15. h3 {[%clk 0:02:34.8]}
15... a5 {[%clk 0:02:55.1]} 16. g4 {[%clk 0:02:34]} 16... h4 {[%clk 0:02:55]}
17. Rhe1 {[%clk 0:02:29.5]} 17... a4 {[%clk 0:02:51.4]} 18. b4 {[%clk
0:02:29.4]} 18... Qd5 {[%clk 0:02:17.3]} 19. Be4 {[%clk 0:02:28.4]} 19... Qd7
{[%clk 0:02:17.7]} 20. Kb1 {[%clk 0:02:23.1]} 20... Ng6 {[%clk 0:01:54.9]} 21.
Bc1 {[%clk 0:02:21]} 21... Ne7 {[%clk 0:01:48.8]} 22. f4 {[%clk 0:02:18.5]}
22... f5 {[%clk 0:01:45.6]} 23. Bd3 {[%clk 0:01:59.6]} 23... g6 {[%clk
0:01:43.1]} 24. g5 {[%clk 0:01:43.8]} 24... Nd5 {[%clk 0:01:36.8]} 25. Re5
{[%clk 0:01:43.1]} 25... Nb6 {[%clk 0:01:35.7]} 26. Rde1 {[%clk 0:01:41.6]}
26... Bc4 {[%clk 0:01:29.3]} 27. Qe2 {[%clk 0:01:33.1]} 27... Rxe5 {[%clk
0:01:19.4]} 28. fxe5 {[%clk 0:01:34]} 28... Nd5 {[%clk 0:01:19.4]} 29. Bd2
{[%clk 0:01:30.7]} 29... Bxd3+ {[%clk 0:01:05.6]} 30. Qxd3 {[%clk 0:01:31.6]}
30... Qe6 {[%clk 0:01:04.5]} 31. c4 {[%clk 0:01:10.1]} 31... bxc4 {[%clk
0:00:49.5]} 32. Qxc4 {[%clk 0:01:11]} 32... f4 {[%clk 0:00:40.6]} 33. Ka1 {[%clk
0:01:08.6]} 33... Rc8 {[%clk 0:00:36]} 34. Qd3 {[%clk 0:01:06.5]} 34... Ne7
{[%clk 0:00:32.2]} 35. Bxf4 {[%clk 0:01:02.1]} 35... Nf5 {[%clk 0:00:31]} 36.
Rc1 {[%clk 0:01:01.5]} 36... Qd5 {[%clk 0:00:31.2]} 37. b5 {[%clk 0:00:55.3]}
37... Nxd4 {[%clk 0:00:25.1]} 38. bxc6 {[%clk 0:00:52.5]} 38... Nb3+ {[%clk
0:00:24.5]} 0-1

[Event "*** SCC Grand Prix: Titled Tuesday Blitz"]
[Site "Chess.com"]
[Date "2020.08.11"]
[Round "4"]
[White "The_Machine04"]
[Black "Timerkhanov"]
[Result "0-1"]
[WhiteElo "2249"]
[BlackElo "2590"]
[TimeControl "180+1"]
[EndTime "10:38:53 PDT"]
[Termination "Timerkhanov won on time"]

1. d4 {[%clk 0:03:00.9]} 1... d5 {[%clk 0:02:59.5]} 2. Bf4 {[%clk 0:03:00.5]}
2... c5 {[%clk 0:02:59.2]} 3. e3 {[%clk 0:03:00.3]} 3... Nc6 {[%clk 0:02:59.4]}
4. c3 {[%clk 0:02:59.9]} 4... Nf6 {[%clk 0:02:57.4]} 5. Nd2 {[%clk 0:02:58.9]}
5... cxd4 {[%clk 0:02:57.5]} 6. exd4 {[%clk 0:02:58.4]} 6... Bf5 {[%clk
0:02:57.5]} 7. Qb3 {[%clk 0:02:53]} 7... Qc8 {[%clk 0:02:57.3]} 8. Ngf3 {[%clk
0:02:51.1]} 8... e6 {[%clk 0:02:57.3]} 9. Nh4 {[%clk 0:02:48.6]} 9... Bg6 {[%clk
0:02:24.1]} 10. Nxg6 {[%clk 0:02:48.1]} 10... hxg6 {[%clk 0:02:25]} 11. Bd3
{[%clk 0:02:47.7]} 11... a6 {[%clk 0:02:24.5]} 12. Nf3 {[%clk 0:02:39.4]} 12...
Be7 {[%clk 0:02:24.1]} 13. Ne5 {[%clk 0:02:33.5]} 13... Nxe5 {[%clk 0:02:13.5]}
14. Bxe5 {[%clk 0:02:34.4]} 14... O-O {[%clk 0:02:11.9]} 15. h4 {[%clk
0:02:28.4]} 15... Nd7 {[%clk 0:01:54.8]} 16. h5 {[%clk 0:02:24.2]} 16... Nxe5
{[%clk 0:01:52.1]} 17. dxe5 {[%clk 0:02:20.8]} 17... gxh5 {[%clk 0:01:52.1]} 18.
Rxh5 {[%clk 0:02:08.5]} 18... g6 {[%clk 0:01:51.2]} 19. Rh3 {[%clk 0:01:37.9]}
19... Qc7 {[%clk 0:01:45.7]} 20. f4 {[%clk 0:01:30.1]} 20... Kg7 {[%clk
0:01:44.6]} 21. O-O-O {[%clk 0:01:17.6]} 21... Rh8 {[%clk 0:01:42.9]} 22. Rdh1
{[%clk 0:01:16.2]} 22... Rxh3 {[%clk 0:01:41.8]} 23. Rxh3 {[%clk 0:01:17.1]}
23... b5 {[%clk 0:01:39.4]} 24. Qd1 {[%clk 0:01:10]} 24... Qc5 {[%clk
0:01:37.1]} 25. Qh1 {[%clk 0:01:03.1]} 25... Rg8 {[%clk 0:01:31.5]} 26. Rh7+
{[%clk 0:00:27.1]} 26... Kf8 {[%clk 0:01:31.1]} 27. Kb1 {[%clk 0:00:09.4]} 27...
Qe3 {[%clk 0:01:26]} 28. Bc2 {[%clk 0:00:03.1]} 28... Qxf4 {[%clk 0:01:21.6]}
29. g3 {[%clk 0:00:02]} 29... Qxe5 {[%clk 0:01:14.5]} 30. Qf1 {[%clk 0:00:01.4]}
30... Qf6 {[%clk 0:01:05.8]} 31. Qh1 {[%clk 0:00:01.3]} 31... b4 {[%clk
0:01:01.5]} 32. g4 {[%clk 0:00:01.7]} 32... bxc3 {[%clk 0:01:00.2]} 33. bxc3
{[%clk 0:00:02.2]} 33... Qxc3 {[%clk 0:00:58.5]} 34. Qf1 {[%clk 0:00:01.8]}
34... Bf6 {[%clk 0:00:57.2]} 0-1

[Event "*** SCC Grand Prix: Titled Tuesday Blitz"]
[Site "Chess.com"]
[Date "2020.08.11"]
[Round "4"]
[White "lucachess49"]
[Black "ahachess"]
[Result "0-1"]
[WhiteElo "2438"]
[BlackElo "2284"]
[TimeControl "180+1"]
[EndTime "10:38:54 PDT"]
[Termination "ahachess won by checkmate"]

1. d4 {[%clk 0:02:20.8]} 1... Nf6 {[%clk 0:02:57.2]} 2. c4 {[%clk 0:02:20.6]}
2... g6 {[%clk 0:02:57.5]} 3. Nc3 {[%clk 0:02:21.1]} 3... Bg7 {[%clk 0:02:58.2]}
4. e4 {[%clk 0:02:21.7]} 4... d6 {[%clk 0:02:58.3]} 5. f3 {[%clk 0:02:22.2]}
5... O-O {[%clk 0:02:58]} 6. Nge2 {[%clk 0:02:21.2]} 6... c5 {[%clk 0:02:57.2]}
7. Be3 {[%clk 0:02:21.4]} 7... b6 {[%clk 0:02:54.9]} 8. Qd2 {[%clk 0:02:21.4]}
8... Nc6 {[%clk 0:02:54.9]} 9. Rd1 {[%clk 0:02:16.8]} 9... Ba6 {[%clk
0:02:41.1]} 10. b3 {[%clk 0:02:14.8]} 10... Rb8 {[%clk 0:02:33.8]} 11. d5 {[%clk
0:01:58.2]} 11... Na5 {[%clk 0:02:30.5]} 12. Ng3 {[%clk 0:01:41.4]} 12... Bc8
{[%clk 0:02:29.3]} 13. Be2 {[%clk 0:01:40.4]} 13... a6 {[%clk 0:02:27.1]} 14.
O-O {[%clk 0:01:39.7]} 14... Bd7 {[%clk 0:02:14.2]} 15. f4 {[%clk 0:01:27.8]}
15... Ng4 {[%clk 0:02:09.2]} 16. Bxg4 {[%clk 0:01:25.6]} 16... Bxg4 {[%clk
0:02:09.2]} 17. f5 {[%clk 0:01:25.7]} 17... Bxd1 {[%clk 0:02:08.5]} 18. Nxd1
{[%clk 0:01:24.6]} 18... b5 {[%clk 0:02:08]} 19. cxb5 {[%clk 0:01:22.7]} 19...
axb5 {[%clk 0:02:08.3]} 20. Bh6 {[%clk 0:01:23]} 20... c4 {[%clk 0:02:05.4]} 21.
Bxg7 {[%clk 0:01:22.5]} 21... Kxg7 {[%clk 0:02:05.8]} 22. b4 {[%clk 0:01:10.4]}
22... Nb7 {[%clk 0:02:03.2]} 23. Nc3 {[%clk 0:00:56]} 23... Qb6+ {[%clk
0:02:01.6]} 24. Kh1 {[%clk 0:00:55.6]} 24... f6 {[%clk 0:01:50.5]} 25. h4 {[%clk
0:00:48.1]} 25... Nd8 {[%clk 0:01:43.8]} 26. Nge2 {[%clk 0:00:25.4]} 26... Nf7
{[%clk 0:01:39.6]} 27. Nd4 {[%clk 0:00:23.2]} 27... Rg8 {[%clk 0:01:31.9]} 28.
Ne6+ {[%clk 0:00:17.8]} 28... Kh8 {[%clk 0:01:32.3]} 29. Rf3 {[%clk 0:00:16.6]}
29... g5 {[%clk 0:01:25.6]} 30. hxg5 {[%clk 0:00:16.2]} 30... Nxg5 {[%clk
0:01:24.3]} 31. Nxg5 {[%clk 0:00:09.2]} 31... Rxg5 {[%clk 0:01:24.3]} 32. Rh3
{[%clk 0:00:09.9]} 32... Rbg8 {[%clk 0:01:22]} 33. Rh2 {[%clk 0:00:10.4]} 33...
R8g7 {[%clk 0:01:18.2]} 34. Nd1 {[%clk 0:00:08]} 34... Rg4 {[%clk 0:01:12.3]}
35. Nf2 {[%clk 0:00:07.7]} 35... Rg3 {[%clk 0:01:09.5]} 36. Nh3 {[%clk 0:00:08]}
36... Qe3 {[%clk 0:01:08.6]} 37. Qxe3 {[%clk 0:00:07.5]} 37... Rxe3 {[%clk
0:01:08.9]} 38. Nf4 {[%clk 0:00:08.2]} 38... Re1# {[%clk 0:01:08.5]} 0-1

[Event "*** SCC Grand Prix: Titled Tuesday Blitz"]
[Site "Chess.com"]
[Date "2020.08.11"]
[Round "4"]
[White "renehp"]
[Black "GOGIEFF"]
[Result "0-1"]
[WhiteElo "2443"]
[BlackElo "2858"]
[TimeControl "180+1"]
[EndTime "10:38:56 PDT"]
[Termination "GOGIEFF won by resignation"]

1. e4 {[%clk 0:03:00]} 1... c5 {[%clk 0:02:59.5]} 2. Nf3 {[%clk 0:02:59.7]} 2...
d6 {[%clk 0:02:59.8]} 3. d4 {[%clk 0:02:59.7]} 3... cxd4 {[%clk 0:03:00.1]} 4.
Nxd4 {[%clk 0:03:00.6]} 4... Nf6 {[%clk 0:03:00.4]} 5. Nc3 {[%clk 0:03:00.9]}
5... a6 {[%clk 0:03:00.9]} 6. Be3 {[%clk 0:03:01.1]} 6... Nbd7 {[%clk
0:03:00.1]} 7. Qd2 {[%clk 0:02:58.5]} 7... b5 {[%clk 0:02:58.8]} 8. f3 {[%clk
0:02:56.2]} 8... Bb7 {[%clk 0:02:57]} 9. O-O-O {[%clk 0:02:55.9]} 9... h5 {[%clk
0:02:52.8]} 10. Kb1 {[%clk 0:02:55.6]} 10... e6 {[%clk 0:02:51.1]} 11. h4 {[%clk
0:02:52.1]} 11... Rc8 {[%clk 0:02:50.2]} 12. Bg5 {[%clk 0:02:43.4]} 12... Be7
{[%clk 0:02:47.9]} 13. Bd3 {[%clk 0:02:41.4]} 13... O-O {[%clk 0:02:43]} 14.
Rhe1 {[%clk 0:01:58.2]} 14... Ne5 {[%clk 0:02:36.1]} 15. f4 {[%clk 0:01:55.2]}
15... Nc4 {[%clk 0:02:35]} 16. Bxc4 {[%clk 0:01:54.9]} 16... Rxc4 {[%clk
0:02:35.9]} 17. Qe2 {[%clk 0:01:45.1]} 17... Rxc3 {[%clk 0:02:33]} 18. Bxf6
{[%clk 0:01:42.3]} 18... Bxf6 {[%clk 0:02:33.2]} 19. bxc3 {[%clk 0:01:41.8]}
19... Qa5 {[%clk 0:02:20.5]} 20. e5 {[%clk 0:01:37]} 20... dxe5 {[%clk
0:02:18.2]} 21. fxe5 {[%clk 0:01:37.9]} 21... Be7 {[%clk 0:02:03.9]} 22. Nb3
{[%clk 0:01:36.9]} 22... Qxc3 {[%clk 0:02:02.5]} 23. Rd3 {[%clk 0:01:34.2]}
23... Qc7 {[%clk 0:01:39.3]} 24. Qxh5 {[%clk 0:01:33.4]} 24... a5 {[%clk
0:01:35.9]} 25. Red1 {[%clk 0:01:12.5]} 25... Be4 {[%clk 0:01:29.4]} 26. R3d2
{[%clk 0:00:59.2]} 26... a4 {[%clk 0:01:25.2]} 27. Nd4 {[%clk 0:00:55.1]} 27...
Qc3 {[%clk 0:01:21]} 28. Ne2 {[%clk 0:00:29.8]} 28... Qc4 {[%clk 0:01:18.3]} 29.
Nc1 {[%clk 0:00:08]} 29... Qb4+ {[%clk 0:01:14.2]} 30. Ka1 {[%clk 0:00:07.6]}
30... Qc3+ {[%clk 0:01:14.3]} 31. Kb1 {[%clk 0:00:07.7]} 31... Ba3 {[%clk
0:01:12.5]} 32. Nd3 {[%clk 0:00:08.1]} 32... Bxd3 {[%clk 0:01:09]} 33. cxd3
{[%clk 0:00:09]} 33... Rc8 {[%clk 0:01:08.4]} 34. Rf2 {[%clk 0:00:07.4]} 34...
Qc1+ {[%clk 0:01:06.8]} 0-1

[Event "*** SCC Grand Prix: Titled Tuesday Blitz"]
[Site "Chess.com"]
[Date "2020.08.11"]
[Round "4"]
[White "Son_of_Sultan"]
[Black "SilviusTiberius"]
[Result "1-0"]
[WhiteElo "2732"]
[BlackElo "2507"]
[TimeControl "180+1"]
[EndTime "10:39:00 PDT"]
[Termination "Son_of_Sultan won by resignation"]

1. c4 {[%clk 0:02:57.7]} 1... Nf6 {[%clk 0:02:59.9]} 2. Nc3 {[%clk 0:02:54.7]}
2... g6 {[%clk 0:03:00.3]} 3. g3 {[%clk 0:02:45.8]} 3... d6 {[%clk 0:03:00.6]}
4. Bg2 {[%clk 0:02:46.7]} 4... Bg7 {[%clk 0:03:01]} 5. Nf3 {[%clk 0:02:43.9]}
5... O-O {[%clk 0:03:01.4]} 6. O-O {[%clk 0:02:43.1]} 6... Nc6 {[%clk
0:03:01.4]} 7. d4 {[%clk 0:02:40.1]} 7... Rb8 {[%clk 0:03:01.7]} 8. b3 {[%clk
0:02:23.8]} 8... a6 {[%clk 0:03:00.8]} 9. d5 {[%clk 0:02:18.7]} 9... Na5 {[%clk
0:02:57.9]} 10. Bg5 {[%clk 0:02:15.1]} 10... h6 {[%clk 0:02:55.5]} 11. Bd2
{[%clk 0:02:11.6]} 11... c5 {[%clk 0:02:55.3]} 12. dxc6 {[%clk 0:02:10.5]} 12...
Nxc6 {[%clk 0:02:55.3]} 13. Rc1 {[%clk 0:02:05.8]} 13... e5 {[%clk 0:02:55.7]}
14. Be3 {[%clk 0:01:54.5]} 14... Be6 {[%clk 0:02:54.2]} 15. h3 {[%clk
0:01:46.8]} 15... d5 {[%clk 0:02:50.7]} 16. cxd5 {[%clk 0:01:40.3]} 16... Nxd5
{[%clk 0:02:50.6]} 17. Nxd5 {[%clk 0:01:29.6]} 17... Qxd5 {[%clk 0:02:49]} 18.
Qxd5 {[%clk 0:01:20.7]} 18... Bxd5 {[%clk 0:02:48.7]} 19. Rfd1 {[%clk
0:01:20.7]} 19... Be6 {[%clk 0:02:37.9]} 20. Bb6 {[%clk 0:01:15.7]} 20... Rbc8
{[%clk 0:02:36.2]} 21. Ne1 {[%clk 0:01:05.3]} 21... f5 {[%clk 0:02:30.7]} 22.
Rd6 {[%clk 0:00:58.4]} 22... Kf7 {[%clk 0:02:08.9]} 23. Bxc6 {[%clk 0:00:56.2]}
23... bxc6 {[%clk 0:02:07.2]} 24. Rdxc6 {[%clk 0:00:55.1]} 24... Rxc6 {[%clk
0:02:06.2]} 25. Rxc6 {[%clk 0:00:56]} 25... Rc8 {[%clk 0:02:00.5]} 26. Rxc8
{[%clk 0:00:54.4]} 26... Bxc8 {[%clk 0:02:01.4]} 27. f4 {[%clk 0:00:47.5]} 27...
g5 {[%clk 0:01:49.1]} 28. Kf2 {[%clk 0:00:37.3]} 28... Ke6 {[%clk 0:01:46.9]}
29. Be3 {[%clk 0:00:32.3]} 29... gxf4 {[%clk 0:01:44.1]} 30. gxf4 {[%clk
0:00:31.8]} 30... e4 {[%clk 0:01:45]} 31. Nc2 {[%clk 0:00:30.4]} 31... Kd5
{[%clk 0:01:38.6]} 32. Ba7 {[%clk 0:00:29.4]} 32... Bc3 {[%clk 0:01:32.9]} 33.
e3 {[%clk 0:00:27.7]} 33... a5 {[%clk 0:01:30.8]} 34. Bd4 {[%clk 0:00:27.3]}
34... Bb4 {[%clk 0:01:25.8]} 35. Nxb4+ {[%clk 0:00:26]} 35... axb4 {[%clk
0:01:26.7]} 36. Kg3 {[%clk 0:00:25.1]} 36... Ba6 {[%clk 0:01:24.9]} 37. Kh4
{[%clk 0:00:24.9]} 37... Be2 {[%clk 0:01:25.2]} 38. Bg7 {[%clk 0:00:23.1]} 38...
h5 {[%clk 0:01:25.4]} 39. Bf8 {[%clk 0:00:23.1]} 39... Bd3 {[%clk 0:01:20.4]}
40. Bxb4 {[%clk 0:00:22.8]} 40... Bb1 {[%clk 0:01:21.3]} 41. a4 {[%clk
0:00:19.8]} 41... Bc2 {[%clk 0:01:21.1]} 42. Kxh5 {[%clk 0:00:19.6]} 42... Bxb3
{[%clk 0:01:21.3]} 43. a5 {[%clk 0:00:20]} 43... Bc4 {[%clk 0:01:19.5]} 44. Kg5
{[%clk 0:00:18.4]} 44... Ke6 {[%clk 0:01:13.5]} 45. h4 {[%clk 0:00:18]} 1-0

[Event "*** SCC Grand Prix: Titled Tuesday Blitz"]
[Site "Chess.com"]
[Date "2020.08.11"]
[Round "4"]
[White "CheckThis4"]
[Black "chegueps"]
[Result "1-0"]
[WhiteElo "2626"]
[BlackElo "2452"]
[TimeControl "180+1"]
[EndTime "10:39:00 PDT"]
[Termination "CheckThis4 won by resignation"]

1. d4 {[%clk 0:03:00.9]} 1... Nf6 {[%clk 0:02:54.2]} 2. c4 {[%clk 0:02:59.6]}
2... e6 {[%clk 0:02:54.2]} 3. Nf3 {[%clk 0:02:58]} 3... d5 {[%clk 0:02:52.7]} 4.
Nc3 {[%clk 0:02:56.9]} 4... Bb4 {[%clk 0:02:52.5]} 5. Bg5 {[%clk 0:02:55.9]}
5... h6 {[%clk 0:02:52]} 6. Bh4 {[%clk 0:02:55.3]} 6... dxc4 {[%clk 0:02:36.5]}
7. e4 {[%clk 0:02:53.9]} 7... g5 {[%clk 0:02:28.4]} 8. Bg3 {[%clk 0:02:52.9]}
8... Nxe4 {[%clk 0:02:21.1]} 9. Qc2 {[%clk 0:02:52.3]} 9... Nxg3 {[%clk
0:01:58.2]} 10. hxg3 {[%clk 0:02:53.2]} 10... b5 {[%clk 0:01:54.3]} 11. O-O-O
{[%clk 0:02:48.2]} 11... c6 {[%clk 0:01:51.3]} 12. Ne4 {[%clk 0:02:34.7]} 12...
Nd7 {[%clk 0:01:41.3]} 13. Nfxg5 {[%clk 0:02:21.6]} 13... Nf6 {[%clk 0:01:14.5]}
14. Be2 {[%clk 0:02:12.3]} 14... Bb7 {[%clk 0:00:55.2]} 15. Kb1 {[%clk 0:01:54]}
15... Nxe4 {[%clk 0:00:45.4]} 16. Nxe4 {[%clk 0:01:53.3]} 16... Qe7 {[%clk
0:00:44.4]} 17. a3 {[%clk 0:01:50.2]} 17... Ba5 {[%clk 0:00:42.8]} 18. Nc5
{[%clk 0:01:47.9]} 18... O-O-O {[%clk 0:00:38.7]} 19. Bf3 {[%clk 0:01:41.2]}
19... Ba8 {[%clk 0:00:36.6]} 20. a4 {[%clk 0:01:33.5]} 20... Kb8 {[%clk
0:00:21.1]} 21. axb5 {[%clk 0:01:21.3]} 21... cxb5 {[%clk 0:00:22]} 22. Na6+
{[%clk 0:01:20.4]} 22... Kc8 {[%clk 0:00:18.4]} 23. Bxa8 {[%clk 0:01:20.3]}
23... Qd6 {[%clk 0:00:08.8]} 24. Nc5 {[%clk 0:01:14.9]} 24... Bb6 {[%clk
0:00:07.9]} 25. Nb7 {[%clk 0:01:10.6]} 25... Qc7 {[%clk 0:00:05.3]} 26. Nxd8
{[%clk 0:01:08.7]} 26... Rxd8 {[%clk 0:00:06.2]} 27. d5 {[%clk 0:01:04.3]} 27...
e5 {[%clk 0:00:06.2]} 28. Bc6 {[%clk 0:01:02.9]} 28... Bd4 {[%clk 0:00:06.4]}
29. Rxh6 {[%clk 0:00:57.9]} 29... a6 {[%clk 0:00:04.5]} 30. Bxb5 {[%clk
0:00:55.3]} 30... Rxd5 {[%clk 0:00:03.7]} 31. Rc6 {[%clk 0:00:48.4]} 31... Rxb5
{[%clk 0:00:03.6]} 32. Rxc7+ {[%clk 0:00:48.4]} 32... Kxc7 {[%clk 0:00:04.5]}
33. Rxd4 {[%clk 0:00:44.9]} 33... exd4 {[%clk 0:00:02.6]} 34. Qxc4+ {[%clk
0:00:44.6]} 34... Rc5 {[%clk 0:00:02]} 1-0

[Event "*** SCC Grand Prix: Titled Tuesday Blitz"]
[Site "Chess.com"]
[Date "2020.08.11"]
[Round "4"]
[White "londonkid"]
[Black "zmarian"]
[Result "1-0"]
[WhiteElo "2456"]
[BlackElo "2200"]
[TimeControl "180+1"]
[EndTime "10:39:00 PDT"]
[Termination "londonkid won by resignation"]

1. d4 {[%clk 0:03:00.9]} 1... g6 {[%clk 0:02:57.5]} 2. c4 {[%clk 0:02:59.9]}
2... Bg7 {[%clk 0:02:57.2]} 3. Nf3 {[%clk 0:03:00.6]} 3... c5 {[%clk 0:02:57.1]}
4. d5 {[%clk 0:02:59.9]} 4... d6 {[%clk 0:02:56.4]} 5. Nc3 {[%clk 0:02:57.8]}
5... Nf6 {[%clk 0:02:56.2]} 6. Bg5 {[%clk 0:02:57.1]} 6... O-O {[%clk
0:02:54.9]} 7. e3 {[%clk 0:02:57.2]} 7... Na6 {[%clk 0:02:52.1]} 8. Bd3 {[%clk
0:02:53.5]} 8... Nc7 {[%clk 0:02:51]} 9. a4 {[%clk 0:02:53.2]} 9... b6 {[%clk
0:02:50.4]} 10. O-O {[%clk 0:02:52.5]} 10... a6 {[%clk 0:02:49.7]} 11. Nd2
{[%clk 0:02:51.2]} 11... Bd7 {[%clk 0:02:45.8]} 12. h3 {[%clk 0:02:45]} 12...
Qb8 {[%clk 0:02:41.2]} 13. Qc2 {[%clk 0:02:37.8]} 13... Qb7 {[%clk 0:02:40.2]}
14. e4 {[%clk 0:02:35.9]} 14... b5 {[%clk 0:02:38.9]} 15. f4 {[%clk 0:02:26.1]}
15... h6 {[%clk 0:02:22.3]} 16. Bh4 {[%clk 0:02:25.2]} 16... Rfe8 {[%clk
0:02:08.3]} 17. Rae1 {[%clk 0:02:16.2]} 17... bxa4 {[%clk 0:02:03.1]} 18. e5
{[%clk 0:02:14.7]} 18... Nh7 {[%clk 0:02:02.7]} 19. e6 {[%clk 0:02:06.7]} 19...
fxe6 {[%clk 0:01:45.8]} 20. Bxg6 {[%clk 0:02:06]} 20... Nf8 {[%clk 0:01:38]} 21.
Bxe8 {[%clk 0:02:02.5]} 21... Rxe8 {[%clk 0:01:34.2]} 22. dxe6 {[%clk
0:01:54.8]} 22... Ncxe6 {[%clk 0:01:30.5]} 23. Nd5 {[%clk 0:01:48]} 23... Qxb2
{[%clk 0:01:24.9]} 24. Qxb2 {[%clk 0:01:43.1]} 24... Bxb2 {[%clk 0:01:21.9]} 25.
Bxe7 {[%clk 0:01:40]} 25... Bd4+ {[%clk 0:00:38.1]} 26. Kh1 {[%clk 0:01:38.5]}
26... Ng7 {[%clk 0:00:31]} 27. Bxd6 {[%clk 0:01:31.7]} 27... a3 {[%clk
0:00:28.2]} 28. Be5 {[%clk 0:01:28.3]} 28... Bxe5 {[%clk 0:00:18.6]} 29. fxe5
{[%clk 0:01:28.1]} 29... Re6 {[%clk 0:00:18.2]} 30. Nf6+ {[%clk 0:01:23.9]}
30... Kh8 {[%clk 0:00:17.6]} 31. Nfe4 {[%clk 0:01:17.1]} 31... Ng6 {[%clk
0:00:16.2]} 32. Nxc5 {[%clk 0:01:16.2]} 32... Rxe5 {[%clk 0:00:16.2]} 33. Nxd7
{[%clk 0:01:15.5]} 33... Rxe1 {[%clk 0:00:15.8]} 34. Rxe1 {[%clk 0:01:15.7]}
34... a2 {[%clk 0:00:16]} 35. Ra1 {[%clk 0:01:15.2]} 35... Nf5 {[%clk
0:00:14.7]} 36. Rxa2 {[%clk 0:01:14.6]} 36... Ne3 {[%clk 0:00:14.8]} 37. Rxa6
{[%clk 0:01:14.1]} 37... Nf4 {[%clk 0:00:15]} 38. c5 {[%clk 0:01:13]} 38... Ne2
{[%clk 0:00:12.6]} 39. Kh2 {[%clk 0:01:05.2]} 39... Nf1+ {[%clk 0:00:11.2]} 40.
Nxf1 {[%clk 0:01:05.3]} 40... h5 {[%clk 0:00:09.9]} 41. c6 {[%clk 0:01:04.7]}
41... h4 {[%clk 0:00:10.3]} 42. c7 {[%clk 0:01:04.4]} 42... Ng3 {[%clk 0:00:11]}
43. c8=Q+ {[%clk 0:01:04]} 43... Kg7 {[%clk 0:00:10.7]} 44. Qc3+ {[%clk
0:00:59]} 1-0